fUST/lending_fUST_20250928
["ID","MTS","AMOUNT","RATE_DAILY","PERIOD"]
[388155684,1759021164503,160.0,0.00034342,2]
[388155685,1759021177600,-2870.31733697,0.00034343,2]
[388155686,1759021177665,-10000.01,0.00034343,2]
[388155687,1759021177679,-10000.01,0.00034343,2]
[388155688,1759021177756,-10000.01,0.00034343,2]
[388155691,1759021204233,500.0,0.00025205,2]
[388155694,1759021338594,150.0,0.000168,2]
[388155697,1759021487961,-351.59627502,0.00028096,2]
[388155698,1759021487996,-351.59627502,0.00028096,2]
[388155699,1759021488034,-351.59627502,0.00028096,2]
[388155700,1759021488070,-351.59627502,0.00028539,4]
[388155701,1759021488108,-351.59627502,0.00028539,4]
[388155702,1759021488142,-351.59627502,0.00028539,4]
[388155703,1759021488179,-166.0,0.0002898,2]
[388155704,1759021488217,-300.0,0.0002898,2]
[388155705,1759021488252,-351.59627502,0.00028981,6]
[388155706,1759021488287,-351.59627502,0.00028981,6]
[388155707,1759021488325,-351.59627502,0.00029424,8]
[388155708,1759021488355,-351.59627502,0.00029424,8]
[388155709,1759021488383,-351.59627502,0.00029424,8]
[388155710,1759021488410,-351.59627502,0.00029424,8]
[388155711,1759021488441,-278.1031245,0.00029867,10]
[388155712,1759021488952,-73.49315052,0.00029867,10]
[388155713,1759021488981,-351.59627502,0.00029867,10]
[388155714,1759021489013,-351.59627502,0.00029867,10]
[388155715,1759021489040,-396.01643875,0.00030087,30]
[388155716,1759021489067,-150.0,0.00030087,30]
[388155717,1759021489096,-500.0,0.0003069,7]
[388155718,1759021489124,-420.0,0.00031267,2]
[388155719,1759021489150,-160.0,0.00031813,2]
[388155720,1759021489179,-500.0,0.00032519,7]
[388155721,1759021489206,-500.0,0.00032756,7]
[388155722,1759021489234,-500.0,0.00033307,7]
[388155723,1759021489262,-587.0,0.00033735,2]
[388155724,1759021489971,-520.60572138,0.00033969,2]
[388155725,1759021490004,-9994.07860001,0.00033969,2]
[388155726,1759021490013,-5.93139999,0.00034253,2]
[388155727,1759021490034,-154.08409053,0.00034253,2]
[388155728,1759021490044,-168.0,0.00034292,2]
[388155729,1759021490053,-356.28,0.00034322,3]
[388155730,1759021490063,-152.08996154,0.00034331,7]
[388155731,1759021490072,-500.0,0.00034331,7]
[388155732,1759021490082,-500.0,0.00034331,7]
[388155733,1759021490094,-500.0,0.00034331,7]
[388155734,1759021490103,-318.60408813,0.00034331,7]
[388155735,1759021490112,-256.83629806,0.00034331,7]
[388155736,1759021490122,-500.0,0.00034331,7]
[388155737,1759021490131,-500.0,0.00034331,7]
[388155738,1759021490141,-456.80263992,0.00034331,7]
[388155739,1759021490151,-5637.31292182,0.00034332,2]
[388155740,1759021490168,-10000.01,0.00034332,2]
[388155741,1759021490182,-10000.01,0.00034332,2]
[388155742,1759021497818,-10000.01,0.00034332,2]
[388155743,1759021497956,-10000.01,0.00034332,2]
[388155747,1759021648127,-173.0664489,0.00028,3]
[388155821,1759021835753,-60.69986467,0.00028,3]
[388155822,1759021835763,-233.76631357,0.00029,10]
[388155823,1759021835772,-500.0,0.00032037,7]
[388155824,1759021835782,-293.85068442,0.00032072,7]
[388155825,1759021835791,-201.0,0.00033142,7]
[388155826,1759021835801,-500.0,0.00033354,7]
[388155827,1759021835812,-201.0,0.000334,2]
[388155828,1759021835822,-160.5772786,0.00033848,2]
[388155829,1759021835832,-150.75685395,0.00033855,119]
[388155830,1759021835842,-201.0,0.00033955,2]
[388155831,1759021835854,-168.0,0.00034211,2]
[388155832,1759021835863,-173.91666864,0.00034253,2]
[388155833,1759021835873,-417.15472785,0.00034326,2]
[388155834,1759021835883,-189.3309625,0.00034329,2]
[388155835,1759021835892,-300.0,0.00034329,3]
[388155836,1759021835901,-400.0,0.00034329,2]
[388155837,1759021835911,-300.0,0.00034329,3]
[388155838,1759021835921,-1600.0,0.00034329,3]
[388155839,1759021835930,-300.0,0.00034329,3]
[388155840,1759021835939,-300.0,0.00034329,3]
[388155841,1759021835949,-1200.0,0.0003433,3]
[388155842,1759021835959,-151.0,0.00034332,2]
[388155843,1759021835969,-151.0,0.00034332,2]
[388155844,1759021835978,-151.0,0.00034332,2]
[388155845,1759021835988,-151.0,0.00034332,2]
[388155846,1759021835998,-151.0,0.00034332,2]
[388155847,1759021836009,-151.0,0.00034332,2]
[388155848,1759021836018,-151.0,0.00034332,2]
[388155849,1759021836027,-151.0,0.00034332,2]
[388155850,1759021836037,-151.0,0.00034332,2]
[388155851,1759021836048,-151.0,0.00034332,2]
[388155852,1759021836058,-151.0,0.00034332,2]
[388155853,1759021836068,-151.0,0.00034332,2]
[388155854,1759021836078,-151.0,0.00034332,2]
[388155855,1759021836087,-151.0,0.00034332,2]
[388155856,1759021836096,-151.0,0.00034332,2]
[388155857,1759021836106,-151.0,0.00034332,2]
[388155858,1759021836115,-151.0,0.00034332,2]
[388155859,1759021836124,-151.0,0.00034332,2]
[388155860,1759021836134,-151.0,0.00034332,2]
[388155861,1759021836143,-151.0,0.00034332,2]
[388155862,1759021836153,-1906.28533426,0.00034339,2]
[388155863,1759021836163,-249.07349895,0.00034342,7]
[388155864,1759021836174,-338.23390109,0.00034342,7]
[388155865,1759021836183,-500.0,0.00034342,7]
[388155866,1759021836192,-277.10809963,0.00034342,7]
[388155867,1759021836202,-500.0,0.00034342,7]
[388155868,1759021836211,-615.88863816,0.00034342,7]
[388155869,1759021836221,-94283.97177855,0.00034343,2]
[388155870,1759021836233,-27346.16352135,0.00034343,2]
[388155871,1759021836244,-309.70205459,0.00034343,2]
[388155872,1759021836259,-209130.76715251,0.00034343,2]
[388155873,1759021836269,-85777.59010878,0.00034353,2]
[388155878,1759021838629,-284222.40989122,0.00034353,2]
[388155879,1759021838639,-500.0,0.00034373,5]
[388155880,1759021838650,-500.0,0.00034373,5]
[388155881,1759021838660,-500.0,0.00034373,5]
[388155882,1759021838670,-500.0,0.00034373,5]
[388155883,1759021838679,-500.0,0.00034373,5]
[388155884,1759021838690,-500.0,0.00034373,2]
[388155885,1759021838700,-500.0,0.00034373,5]
[388155886,1759021838711,-357.2568059,0.00034373,5]
[388155887,1759021838721,-500.0,0.00034373,3]
[388155888,1759021838731,-500.0,0.00034373,5]
[388155889,1759021838741,-576.03187681,0.000344,5]
[388155890,1759021838751,-8505.436118,0.00034525,2]
[388155891,1759021838761,-150.0,0.00034562,2]
[388155892,1759021838771,-300.0,0.00034562,2]
[388155893,1759021838780,-450.0,0.00034562,2]
[388155894,1759021838790,-600.0,0.00034562,2]
[388155895,1759021838800,-159.26782013,0.00034562,2]
[388155896,1759021838810,-1000.0,0.00034562,2]
[388155897,1759021838819,-1000.0,0.00034562,2]
[388155898,1759021838828,-1000.0,0.00034562,2]
[388155899,1759021838838,-1000.0,0.00034562,2]
[388155900,1759021838848,-1000.0,0.00034562,2]
[388155901,1759021838858,-1000.0,0.00034562,2]
[388155902,1759021838867,-1000.0,0.00034562,2]
[388155903,1759021838877,-1000.0,0.00034562,2]
[388155904,1759021838887,-280.49464243,0.00034563,2]
[388155905,1759021838897,-299.53118546,0.00034563,2]
[388155906,1759021838907,-979.0,0.00034565,2]
[388155907,1759021838917,-2161.0,0.00034565,2]
[388155908,1759021838926,-635.0,0.00034565,2]
[388155909,1759021838936,-1000.0,0.00034572,2]
[388155910,1759021838945,-1000.0,0.00034572,2]
[388155911,1759021838955,-1000.0,0.00034572,2]
[388155912,1759021838965,-1000.0,0.00034572,2]
[388155913,1759021838975,-984.1858164,0.00034572,2]
[388155914,1759021838986,-205198.10821975,0.000347,2]
[388155915,1759021838997,-342.44294094,0.00034705,2]
[388155916,1759021839008,-315.68247061,0.00034741,2]
[388155917,1759021839018,-173.91666864,0.00034765,2]
[388155918,1759021839028,-201.0,0.0003483,2]
[388155919,1759021839037,-1000.0,0.00034921,5]
[388155920,1759021839047,-500.0,0.00034921,5]
[388155921,1759021839057,-1000.0,0.00034921,5]
[388155922,1759021839068,-1000.0,0.00034921,5]
[388155923,1759021839077,-500.0,0.00034921,3]
[388155924,1759021839087,-1000.0,0.00034921,5]
[388155925,1759021839096,-500.0,0.00034965,7]
[388155926,1759021839106,-201.0,0.00035123,2]
[388155927,1759021839116,-600.0,0.00035244,2]
[388155928,1759021839126,-173.91666864,0.00035278,2]
[388155929,1759021839135,-1584.98919306,0.00035468,5]
[388155930,1759021839146,-1500.0,0.00035468,5]
[388155931,1759021839155,-1231.65900691,0.00035468,5]
[388155932,1759021839165,-410.0,0.00035478,2]
[388155933,1759021839175,-498.65714211,0.00035537,2]
[388155934,1759021839185,-532.49988527,0.00035545,2]
[388155935,1759021839194,-168.0,0.00035556,2]
[388155936,1759021839204,-168.0,0.00035594,2]
[388155937,1759021839213,-600.0,0.00035611,2]
[388155938,1759021839223,-200.0,0.00035615,10]
[388155939,1759021839233,-150000.0,0.00035616,4]
[388155940,1759021839243,-982.1,0.00035616,9]
[388155941,1759021839253,-480.0,0.00035616,9]
[388155942,1759021839263,-480.0,0.00035616,9]
[388155943,1759021839451,-480.0,0.00035616,9]
[388155944,1759021839472,-480.0,0.00035616,9]
[388155945,1759021839484,-480.0,0.00035616,9]
[388155946,1759021839497,-480.0,0.00035616,9]
[388155947,1759021839507,-743.62,0.00035616,9]
[388155948,1759021839518,-480.0,0.00035616,9]
[388155949,1759021839528,-480.0,0.00035616,9]
[388155950,1759021839540,-480.0,0.00035616,9]
[388155951,1759021839551,-480.0,0.00035616,9]
[388155952,1759021839562,-788.13,0.00035616,9]
[388155953,1759021839572,-502.69,0.00035616,9]
[388155954,1759021839581,-480.0,0.00035616,9]
[388155955,1759021839591,-530.6505539,0.00035616,9]
[388155956,1759021839601,-210.149048,0.00035616,9]
[388155957,1759021839610,-915.07,0.00035616,9]
[388155958,1759021839620,-815.48,0.00035616,9]
[388155959,1759021839630,-483.31,0.00035616,9]
[388155960,1759021839640,-480.0,0.00035616,9]
[388155961,1759021839650,-480.0,0.00035616,9]
[388155962,1759021839660,-837.6,0.00035616,9]
[388155963,1759021839670,-480.0,0.00035616,9]
[388155964,1759021839680,-480.0,0.00035616,9]
[388155965,1759021839690,-640.86,0.00035616,9]
[388155966,1759021839700,-832.14,0.00035616,9]
[388155967,1759021839709,-480.0,0.00035616,9]
[388155968,1759021839719,-480.0,0.00035616,9]
[388155969,1759021839729,-480.0,0.00035616,9]
[388155970,1759021839739,-480.0,0.00035616,9]
[388155971,1759021839749,-217.06547331,0.00035616,9]
[388155972,1759021839759,-480.0,0.00035616,9]
[388155973,1759021839769,-639.13,0.00035616,9]
[388155974,1759021839779,-480.0,0.00035616,9]
[388155975,1759021839789,-1000.0,0.00035616,9]
[388155976,1759021839799,-480.0,0.00035616,9]
[388155977,1759021839809,-985.59,0.00035616,9]
[388155978,1759021839819,-480.0,0.00035616,9]
[388155979,1759021839828,-480.0,0.00035616,9]
[388155980,1759021839839,-480.0,0.00035616,9]
[388155981,1759021839850,-480.0,0.00035616,9]
[388155982,1759021839860,-480.0,0.00035616,9]
[388155983,1759021839870,-480.0,0.00035616,9]
[388155984,1759021839880,-480.0,0.00035616,9]
[388155985,1759021839890,-564.53391472,0.00035616,9]
[388155986,1759021839900,-480.0,0.00035616,9]
[388155987,1759021839909,-480.0,0.00035616,9]
[388155988,1759021839919,-480.0,0.00035616,9]
[388155989,1759021839928,-480.0,0.00035616,9]
[388155990,1759021839938,-480.0,0.00035616,9]
[388155991,1759021839949,-592.93,0.00035616,9]
[388155992,1759021839959,-480.0,0.00035616,9]
[388155993,1759021839968,-480.0,0.00035616,9]
[388155994,1759021839978,-480.0,0.00035616,9]
[388155995,1759021839987,-480.0,0.00035616,9]
[388155996,1759021839997,-480.0,0.00035616,9]
[388155997,1759021840007,-480.0,0.00035616,9]
[388155998,1759021840017,-480.0,0.00035616,9]
[388155999,1759021840027,-480.0,0.00035616,9]
[388156000,1759021840036,-480.0,0.00035616,9]
[388156001,1759021840048,-480.0,0.00035616,9]
[388156002,1759021840059,-480.0,0.00035616,9]
[388156004,1759021840069,-480.0,0.00035616,9]
[388156005,1759021840078,-480.0,0.00035616,9]
[388156006,1759021840088,-480.0,0.00035616,9]
[388156007,1759021840099,-500.0,0.00035616,2]
[388156008,1759021840109,-503.28680982,0.00035616,2]
[388156009,1759021840119,-480.0,0.00035616,9]
[388156010,1759021840128,-1625.23,0.00035616,9]
[388156011,1759021840137,-1049.77,0.00035616,9]
[388156012,1759021840147,-480.0,0.00035616,9]
[388156013,1759021840157,-216.40518248,0.00035616,9]
[388156014,1759021840168,-480.0,0.00035616,9]
[388156015,1759021840178,-480.0,0.00035616,9]
[388156018,1759021840187,-480.0,0.00035616,9]
[388156019,1759021840197,-480.0,0.00035616,9]
[388156020,1759021840207,-480.0,0.00035616,9]
[388156021,1759021840216,-480.0,0.00035616,9]
[388156022,1759021840227,-480.0,0.00035616,9]
[388156023,1759021840238,-480.0,0.00035616,9]
[388156024,1759021840248,-480.0,0.00035616,9]
[388156025,1759021840258,-480.0,0.00035616,9]
[388156026,1759021840268,-480.0,0.00035616,9]
[388156027,1759021840278,-480.0,0.00035616,9]
[388156029,1759021840287,-247.92821994,0.00035616,9]
[388156030,1759021840297,-746.31,0.00035616,9]
[388156031,1759021840307,-480.0,0.00035616,9]
[388156032,1759021840316,-480.0,0.00035616,9]
[388156033,1759021840326,-480.0,0.00035616,9]
[388156034,1759021840335,-480.0,0.00035616,9]
[388156035,1759021840345,-480.0,0.00035616,9]
[388156036,1759021840355,-480.0,0.00035616,9]
[388156037,1759021840365,-929.09,0.00035616,9]
[388156038,1759021840376,-1151.89,0.00035616,9]
[388156039,1759021840385,-832.46,0.00035616,9]
[388156040,1759021840394,-513.0,0.00035616,9]
[388156042,1759021840403,-480.0,0.00035616,9]
[388156044,1759021840412,-587.93,0.00035616,9]
[388156046,1759021840422,-932.73,0.00035616,9]
[388156048,1759021840431,-871.27,0.00035616,9]
[388156050,1759021840440,-649.68,0.00035616,9]
[388156052,1759021840451,-480.0,0.00035616,9]
[388156054,1759021840460,-480.0,0.00035616,9]
[388156056,1759021840469,-151.0,0.00035616,7]
[388156058,1759021840480,-151.0,0.00035616,7]
[388156060,1759021840490,-480.0,0.00035616,9]
[388156062,1759021840499,-480.0,0.00035616,9]
[388156064,1759021840509,-151.0,0.00035616,7]
[388156066,1759021840519,-480.0,0.00035616,9]
[388156068,1759021840529,-480.0,0.00035616,9]
[388156070,1759021840538,-1224.7,0.00035616,9]
[388156072,1759021840548,-480.0,0.00035616,9]
[388156074,1759021840557,-712.84,0.00035616,9]
[388156076,1759021840567,-480.0,0.00035616,9]
[388156078,1759021840577,-659.67,0.00035616,9]
[388156080,1759021840586,-480.0,0.00035616,9]
[388156082,1759021840595,-480.0,0.00035616,9]
[388156084,1759021840605,-480.0,0.00035616,9]
[388156086,1759021840614,-480.0,0.00035616,9]
[388156088,1759021840623,-480.0,0.00035616,9]
[388156090,1759021840633,-480.0,0.00035616,9]
[388156092,1759021840642,-480.0,0.00035616,9]
[388156094,1759021840652,-563.85097826,0.00035616,9]
[388156096,1759021840662,-480.0,0.00035616,9]
[388156097,1759021840671,-480.0,0.00035616,9]
[388156099,1759021840681,-1110.23,0.00035616,9]
[388156101,1759021840690,-780.67,0.00035616,9]
[388156104,1759021840700,-798.52,0.00035616,9]
[388156106,1759021840710,-480.0,0.00035616,9]
[388156108,1759021840720,-480.0,0.00035616,9]
[388156110,1759021840730,-480.0,0.00035616,9]
[388156112,1759021840740,-480.0,0.00035616,9]
[388156114,1759021840749,-1415.63,0.00035616,9]
[388156116,1759021840759,-608.11,0.00035616,9]
[388156117,1759021840768,-722.36,0.00035616,9]
[388156119,1759021840778,-480.0,0.00035616,9]
[388156121,1759021840787,-896.08,0.00035616,9]
[388156123,1759021840797,-1571.0,0.00035616,9]
[388156126,1759021840808,-480.0,0.00035616,9]
[388156128,1759021840818,-480.0,0.00035616,9]
[388156130,1759021840828,-937.74,0.00035616,9]
[388156132,1759021840837,-677.58,0.00035616,9]
[388156134,1759021840846,-480.0,0.00035616,9]
[388156136,1759021840856,-480.0,0.00035616,9]
[388156138,1759021840866,-480.0,0.00035616,9]
[388156140,1759021840876,-480.0,0.00035616,9]
[388156142,1759021840886,-396.91017933,0.00035616,9]
[388156144,1759021840895,-1781.73,0.00035616,9]
[388156146,1759021840904,-480.0,0.00035616,9]
[388156148,1759021840918,-650.15,0.00035616,9]
[388156151,1759021840938,-1328.12,0.00035616,9]
[388156154,1759021840956,-480.0,0.00035616,9]
[388156157,1759021840969,-645.53,0.00035616,9]
[388156159,1759021840984,-480.0,0.00035616,9]
[388156162,1759021840997,-480.0,0.00035616,9]
[388156164,1759021841013,-1050.96,0.00035616,9]
[388156167,1759021841027,-480.0,0.00035616,9]
[388156169,1759021841041,-480.0,0.00035616,9]
[388156172,1759021841058,-480.0,0.00035616,9]
[388156175,1759021841071,-480.0,0.00035616,9]
[388156177,1759021841084,-795.32,0.00035616,9]
[388156178,1759021841097,-480.0,0.00035616,9]
[388156179,1759021841111,-480.0,0.00035616,9]
[388156180,1759021841125,-480.0,0.00035616,2]
[388156181,1759021841139,-480.0,0.00035616,9]
[388156182,1759021841149,-214.3,0.00035616,9]
[388156183,1759021841162,-480.0,0.00035616,9]
[388156184,1759021841173,-480.0,0.00035616,9]
[388156185,1759021841187,-549.9,0.00035616,9]
[388156186,1759021841201,-480.0,0.00035616,9]
[388156187,1759021841218,-695.73,0.00035616,9]
[388156188,1759021841232,-568.68,0.00035616,9]
[388156189,1759021841254,-480.0,0.00035616,9]
[388156190,1759021841265,-480.0,0.00035616,9]
[388156191,1759021841276,-845.91,0.00035616,9]
[388156192,1759021841288,-480.0,0.00035616,9]
[388156193,1759021841301,-822.88,0.00035616,9]
[388156194,1759021841315,-480.0,0.00035616,9]
[388156195,1759021841325,-480.0,0.00035616,9]
[388156196,1759021841336,-952.51,0.00035616,9]
[388156197,1759021841349,-480.0,0.00035616,9]
[388156198,1759021841360,-480.0,0.00035616,9]
[388156199,1759021841370,-524.88,0.00035616,9]
[388156200,1759021841381,-236.95400475,0.00035616,9]
[388156201,1759021841393,-480.0,0.00035616,9]
[388156202,1759021841405,-160.0,0.00035616,3]
[388156203,1759021841416,-480.0,0.00035616,9]
[388156204,1759021841427,-480.0,0.00035616,9]
[388156205,1759021841439,-480.0,0.00035616,9]
[388156206,1759021841454,-798.7,0.00035616,9]
[388156208,1759021841467,-480.0,0.00035616,9]
[388156209,1759021841480,-550.07673195,0.00035616,9]
[388156210,1759021841497,-480.0,0.00035616,9]
[388156213,1759021841509,-480.0,0.00035616,9]
[388156215,1759021841521,-480.0,0.00035616,9]
[388156217,1759021841533,-480.0,0.00035616,9]
[388156219,1759021841545,-480.0,0.00035616,9]
[388156222,1759021841558,-480.0,0.00035616,9]
[388156224,1759021841574,-929.12,0.00035616,9]
[388156226,1759021841586,-480.0,0.00035616,9]
[388156229,1759021841597,-909.04,0.00035616,9]
[388156231,1759021841610,-480.0,0.00035616,9]
[388156233,1759021841624,-480.0,0.00035616,9]
[388156236,1759021841636,-509.81,0.00035616,9]
[388156238,1759021841647,-480.0,0.00035616,9]
[388156240,1759021841659,-480.0,0.00035616,9]
[388156242,1759021841671,-480.0,0.00035616,9]
[388156245,1759021841683,-480.0,0.00035616,9]
[388156247,1759021841694,-754.95,0.00035616,9]
[388156249,1759021841706,-269.62648551,0.00035616,9]
[388156252,1759021841719,-480.0,0.00035616,7]
[388156254,1759021841731,-480.0,0.00035616,9]
[388156256,1759021841743,-480.0,0.00035616,9]
[388156259,1759021841755,-1150.58,0.00035616,9]
[388156261,1759021841767,-480.0,0.00035616,9]
[388156263,1759021841779,-480.0,0.00035616,9]
[388156266,1759021841790,-480.0,0.00035616,9]
[388156268,1759021841801,-1317.01,0.00035616,9]
[388156270,1759021841813,-1115.43,0.00035616,9]
[388156272,1759021841825,-488.65,0.00035616,9]
[388156274,1759021841836,-1230.79,0.00035616,9]
[388156277,1759021841847,-480.0,0.00035616,9]
[388156279,1759021841859,-480.0,0.00035616,9]
[388156281,1759021841872,-480.0,0.00035616,9]
[388156283,1759021841884,-487.38600145,0.00035616,9]
[388156286,1759021841896,-480.0,0.00035616,9]
[388156288,1759021841908,-1236.18,0.00035616,9]
[388156290,1759021841920,-1624.11,0.00035616,9]
[388156293,1759021841931,-480.0,0.00035616,9]
[388156294,1759021841943,-480.0,0.00035616,9]
[388156295,1759021841955,-537.28,0.00035616,9]
[388156296,1759021841967,-480.0,0.00035616,9]
[388156297,1759021841980,-480.0,0.00035616,9]
[388156298,1759021841992,-1023.11,0.00035616,9]
[388156299,1759021842004,-480.0,0.00035616,9]
[388156300,1759021842016,-395.00423328,0.00035616,9]
[388156301,1759021842028,-480.0,0.00035616,9]
[388156302,1759021842040,-480.0,0.00035616,9]
[388156303,1759021842053,-480.0,0.00035616,9]
[388156304,1759021842065,-480.0,0.00035616,9]
[388156305,1759021842076,-480.0,0.00035616,9]
[388156306,1759021842088,-480.0,0.00035616,9]
[388156307,1759021842100,-641.34,0.00035616,9]
[388156308,1759021842111,-480.0,0.00035616,9]
[388156309,1759021842123,-505.12578468,0.00035616,9]
[388156310,1759021842135,-712.15,0.00035616,9]
[388156311,1759021842147,-498.02,0.00035616,9]
[388156312,1759021842159,-480.0,0.00035616,9]
[388156313,1759021842171,-480.0,0.00035616,9]
[388156315,1759021842183,-674.35,0.00035616,9]
[388156318,1759021842195,-941.26,0.00035616,9]
[388156320,1759021842207,-480.0,0.00035616,9]
[388156322,1759021842219,-717.5,0.00035616,9]
[388156324,1759021842231,-480.0,0.00035616,9]
[388156327,1759021842243,-480.0,0.00035616,9]
[388156328,1759021842255,-480.0,0.00035616,9]
[388156329,1759021842266,-480.0,0.00035616,9]
[388156330,1759021842277,-480.0,0.00035616,9]
[388156331,1759021842289,-1416.24,0.00035616,9]
[388156332,1759021842300,-480.0,0.00035616,9]
[388156333,1759021842311,-480.0,0.00035616,9]
[388156334,1759021842322,-480.0,0.00035616,9]
[388156335,1759021842333,-480.0,0.00035616,9]
[388156336,1759021842345,-480.0,0.00035616,9]
[388156337,1759021842356,-2039.11,0.00035616,9]
[388156338,1759021842368,-2088.47,0.00035616,9]
[388156340,1759021842380,-480.0,0.00035616,9]
[388156341,1759021842391,-600.0,0.00035616,9]
[388156342,1759021842402,-480.0,0.00035616,9]
[388156343,1759021842414,-367.52138854,0.00035616,9]
[388156344,1759021842426,-480.0,0.00035616,9]
[388156345,1759021842437,-1743.46,0.00035616,9]
[388156346,1759021842449,-480.0,0.00035616,9]
[388156347,1759021842460,-480.0,0.00035616,9]
[388156348,1759021842472,-1080.22,0.00035616,9]
[388156349,1759021842484,-430.29931593,0.00035616,9]
[388156350,1759021842496,-480.0,0.00035616,9]
[388156351,1759021842508,-480.0,0.00035616,9]
[388156352,1759021842522,-480.0,0.00035616,9]
[388156353,1759021842534,-1632.21,0.00035616,9]
[388156354,1759021842546,-786.16,0.00035616,9]
[388156355,1759021842556,-711.41,0.00035616,9]
[388156356,1759021842565,-843.56,0.00035616,9]
[388156357,1759021842575,-480.0,0.00035616,9]
[388156358,1759021842584,-480.0,0.00035616,9]
[388156359,1759021842593,-388.5438129,0.00035616,9]
[388156360,1759021842603,-638.86,0.00035616,9]
[388156361,1759021842612,-480.0,0.00035616,9]
[388156362,1759021842622,-500.0,0.00035616,9]
[388156363,1759021842631,-480.0,0.00035616,9]
[388156364,1759021842642,-480.68,0.00035616,9]
[388156365,1759021842651,-480.0,0.00035616,9]
[388156366,1759021842660,-1412.46,0.00035616,9]
[388156367,1759021842669,-480.0,0.00035616,9]
[388156368,1759021842933,-345.34545128,0.00035616,9]
[388156369,1759021842955,-480.0,0.00035616,9]
[388156370,1759021842979,-824.67,0.00035616,9]
[388156371,1759021842989,-539.29,0.00035616,9]
[388156372,1759021842998,-480.0,0.00035616,9]
[388156373,1759021843007,-480.0,0.00035616,9]
[388156374,1759021843016,-480.0,0.00035616,9]
[388156375,1759021843026,-480.0,0.00035616,9]
[388156376,1759021843035,-1045.11,0.00035616,9]
[388156377,1759021843044,-480.0,0.00035616,9]
[388156378,1759021843054,-480.0,0.00035616,9]
[388156379,1759021843066,-480.0,0.00035616,7]
[388156380,1759021843075,-480.0,0.00035616,9]
[388156381,1759021843084,-480.0,0.00035616,9]
[388156382,1759021843094,-480.0,0.00035616,9]
[388156383,1759021843103,-480.0,0.00035616,9]
[388156384,1759021843112,-480.0,0.00035616,9]
[388156386,1759021843121,-578.32,0.00035616,9]
[388156388,1759021843130,-586.00272845,0.00035616,9]
[388156389,1759021843140,-480.0,0.00035616,9]
[388156390,1759021843148,-480.0,0.00035616,9]
[388156391,1759021843157,-920.64,0.00035616,9]
[388156392,1759021843166,-1005.67,0.00035616,9]
[388156393,1759021843175,-480.0,0.00035616,9]
[388156394,1759021843185,-480.0,0.00035616,9]
[388156395,1759021843194,-568.75,0.00035616,9]
[388156396,1759021843203,-502.12472415,0.00035616,9]
[388156397,1759021843213,-480.0,0.00035616,9]
[388156398,1759021843222,-480.0,0.00035616,9]
[388156399,1759021843232,-480.0,0.00035616,9]
[388156400,1759021843240,-480.0,0.00035616,9]
[388156401,1759021843250,-480.0,0.00035616,9]
[388156402,1759021843259,-825.5,0.00035616,9]
[388156403,1759021843268,-428.71842867,0.00035616,9]
[388156404,1759021843278,-929.7,0.00035616,9]